fUST/lending_fUST_20250921
["ID","MTS","AMOUNT","RATE_DAILY","PERIOD"]
[386608510,1758421241564,-152.0,0.00019,2]
[386608511,1758421243211,-413.54334412,0.00019,2]
[386608512,1758421247386,-10000.01,0.00019,2]
[386608513,1758421247582,-147.92758194,0.00019,2]
[386608514,1758421247605,-9704.15483612,0.00019,2]
[386608515,1758421247638,-768.04588309,0.00019191,2]
[386608516,1758421247666,-615.80533698,0.00019291,2]
[386608517,1758421247695,-856.08330033,0.00019409,2]
[386608518,1758421247723,-937.92,0.000196,2]
[386608519,1758421247762,-183.08509144,0.00019675,2]
[386608520,1758421247794,-183.08509144,0.00019682,2]
[386608521,1758421247823,-300.0,0.00019686,2]
[386608522,1758421247855,-176.40489234,0.00019687,2]
[386608523,1758421247889,-300.0,0.00019687,2]
[386608524,1758421247921,-300.0,0.00019687,2]
[386608525,1758421247950,-300.0,0.00019687,2]
[386608526,1758421248037,-300.0,0.00019687,2]
[386608527,1758421248068,-3331.40327544,0.00019688,2]
[386608528,1758421248099,-183.08509144,0.00019688,2]
[386608529,1758421248129,-500.0,0.00019688,2]
[386608530,1758421248160,-500.0,0.00019688,2]
[386608531,1758421248189,-148.14642109,0.00019688,2]
[386608532,1758421248446,-11.00438767,0.00019688,2]
[386608533,1758421248461,-63.73603639,0.00019688,2]
[386608534,1758421248470,-159.15080876,0.00019688,2]
[386608535,1758421257554,-1299.1,0.00019412,2]
[386608536,1758421257588,-70.57301195,0.00019688,2]
[386608537,1758421257622,-500.0,0.00019688,2]
[386608538,1758421257652,-599.22753772,0.00019688,2]
[386608539,1758421257682,-158.06,0.00019688,2]
[386608540,1758421257712,-500.0,0.00019688,2]
[386608541,1758421257745,-500.0,0.00019688,2]
[386608542,1758421257778,-500.0,0.00019688,2]
[386608543,1758421257808,-500.0,0.00019688,2]
[386608544,1758421257842,-246.08890066,0.00019688,2]
[386608545,1758421258031,-253.91109934,0.00019688,2]
[386608546,1758421258064,-650.0,0.00019688,2]
[386608547,1758421258094,-500.0,0.00019688,2]
[386608548,1758421258125,-500.0,0.00019688,2]
[386608549,1758421258157,-500.0,0.00019688,2]
[386608550,1758421258185,-578.80003141,0.00019688,2]
[386608551,1758421258217,-500.0,0.00019688,2]
[386608552,1758421258249,-500.0,0.00019688,2]
[386608553,1758421258281,-500.0,0.00019688,2]
[386608554,1758421258311,-500.0,0.00019688,2]
[386608555,1758421258610,-253.91109934,0.00019688,2]
[386608556,1758421258623,-34.5877385,0.00019688,2]
[386608557,1758421267451,-300.0,0.00019687,2]
[386608558,1758421267482,-500.0,0.00019688,2]
[386608559,1758421267514,-211.50116216,0.00019688,2]
[386608560,1758421267544,-500.0,0.00019688,2]
[386608561,1758421267576,-500.0,0.00019688,2]
[386608562,1758421267607,-500.0,0.00019688,2]
[386608563,1758421267637,-317.54799841,0.00019688,2]
[386608564,1758421267670,-500.0,0.00019688,2]
[386608565,1758421267702,-500.0,0.00019688,2]
[386608566,1758421267733,-500.0,0.00019688,2]
[386608567,1758421267765,-500.0,0.00019688,2]
[386608568,1758421268063,-341.91167886,0.00019688,2]
[386608569,1758421272826,-294.41999492,0.00018774,2]
[386608570,1758421277471,-748.85202088,0.00018774,2]
[386608571,1758421277500,-410.53689132,0.00019291,2]
[386608572,1758421277532,-158.08832114,0.00019688,2]
[386608573,1758421277563,-500.0,0.00019688,2]
[386608574,1758421277595,-500.0,0.00019688,2]
[386608575,1758421277626,-500.0,0.00019688,2]
[386608576,1758421277658,-500.0,0.00019688,2]
[386608577,1758421277690,-373.29120847,0.00019688,2]
[386608578,1758421277720,-500.0,0.00019688,2]
[386608579,1758421277751,-500.0,0.00019688,2]
[386608580,1758421277783,-118.47311638,0.00019688,2]
[386608581,1758421278146,-381.52688362,0.00019688,2]
[386608582,1758421297700,-10000.01,0.00018774,2]
[386608583,1758421297882,-10000.01,0.00018774,2]
[386608584,1758421297992,-10000.01,0.00018774,2]
[386608585,1758421298116,-10000.01,0.00018774,2]
[386608586,1758421298227,-10000.01,0.00018774,2]
[386608587,1758421298425,-10000.01,0.00018774,2]
[386608588,1758421298463,-10000.01,0.00018774,2]
[386608589,1758421298600,-10000.01,0.00018774,2]
[386608590,1758421298711,-164.92258107,0.00018774,2]
[386608591,1758421298737,-10000.01,0.00018774,2]
[386608592,1758421298840,-689.25765063,0.00018774,2]
[386608593,1758421298872,-500.0,0.00019688,2]
[386608594,1758421298902,-500.0,0.00019688,2]
[386608595,1758421298932,-500.0,0.00019688,2]
[386608596,1758421298962,-500.0,0.00019688,2]
[386608597,1758421298994,-500.0,0.00019688,2]
[386608598,1758421299029,-500.0,0.00019688,2]
[386608599,1758421299066,-500.0,0.00019688,2]
[386608600,1758421299098,-500.0,0.00019688,2]
[386608601,1758421299131,-121.49469874,0.00019688,2]
[386608602,1758421299392,-378.50530126,0.00019688,2]
[386608603,1758421331726,-208.05480322,0.00018755,2]
[386608604,1758421335457,-5.82159998,0.00018755,2]
[386608605,1758421335480,-209.06073161,0.00018755,2]
[386608606,1758421339715,-437.4602892,0.00018755,2]
[386608607,1758421341748,-160.17430248,0.00018755,2]
[386608608,1758421343761,-152.51896123,0.00018755,2]
[386608609,1758421345468,-426.75339217,0.00018755,2]
[386608610,1758421346918,-258.77333068,0.00018755,2]
[386608611,1758421349665,-179.51983585,0.00018755,2]
[386608612,1758421352783,-152.0,0.00018755,2]
[386608613,1758421354827,-228.35907675,0.00018755,2]
[386608614,1758421356922,-289.77,0.00018755,2]
[386608615,1758421360099,-200.56775672,0.00018755,2]
[386608616,1758421362258,-207.9543967,0.00018755,2]
[386608617,1758421367363,-248.47899204,0.00018755,2]
[386608618,1758421368824,-251.61643831,0.00018755,2]
[386608619,1758421371382,-200.21709368,0.00018755,2]
[386608620,1758421374679,-183.35236356,0.00018755,2]
[386608621,1758421375564,-207.11122295,0.00018755,2]
[386608622,1758421376126,-186.87526954,0.00018755,2]
[386608623,1758421376217,-211.32071571,0.00018755,2]
[386608624,1758421376727,-207.11122295,0.00018755,2]
[386608625,1758421378886,-698.59829889,0.00018755,2]
[386608626,1758421382604,-242.16749244,0.00018755,2]
[386608627,1758421384247,-274.58849716,0.00018755,2]
[386608628,1758421386394,-449.3278534,0.00018755,2]
[386608629,1758421399182,155.60615587,0.00029244,60]
[386608630,1758421441308,-245.35200011,0.00018755,2]
[386608631,1758421465005,-168.28290632,0.00018755,2]
[386608632,1758421467696,-167.19106247,0.00018755,2]
[386608633,1758421469287,-229.3798007,0.00018755,2]
[386608634,1758421472964,-55.35337475,0.00018755,2]
[386608635,1758421472986,-223.53666636,0.00018755,2]
[386608636,1758421475488,-197.26418929,0.00018495,2]
[386608637,1758421482073,-189.55714636,0.00018495,2]
[386608638,1758421485490,1466247.72658095,0.00029244,60]
[386608639,1758421487062,-300.0,0.00018495,2]
[386608640,1758421489703,-167.58243969,0.00018495,2]
[386608641,1758421492832,-321.41609566,0.00018495,2]
[386608642,1758421494901,-204.31655664,0.00018495,2]
[386608643,1758421497424,-353.14070466,0.00018495,2]
[386608644,1758421501922,-217.73888598,0.00018495,2]
[386608645,1758421504090,-300.0,0.00018494,2]
[386608646,1758421504118,-48.5126991,0.00018494,2]
[386608647,1758421506281,-251.4873009,0.00018494,2]
[386608648,1758421506309,-33.92274156,0.00018494,2]
[386608649,1758421510948,-163.828577,0.00018494,2]
[386608650,1758421513020,-102.24868144,0.00018494,2]
[386608651,1758421513047,-70.1652023,0.00018494,2]
[386608652,1758421514940,-152.0,0.00018494,2]
[386608653,1758421517800,-77.8347977,0.00018494,2]
[386608654,1758421517824,-246.5873796,0.00018494,2]
[386608656,1758421518115,-953.4126204,0.00018494,2]
[386608657,1758421518155,-8093.1847592,0.00018495,2]
[386608658,1758421518209,-10000.01,0.00018495,2]
[386608659,1758421518358,-10000.01,0.00018495,2]
[386608660,1758421518471,-439.07809072,0.00018495,2]
[386608661,1758421538243,-3267.43379951,0.00018755,2]
[386608662,1758421538272,-500.0,0.000188,2]
[386608663,1758421538302,-500.0,0.000188,2]
[386608664,1758421538330,-500.0,0.000188,2]
[386608665,1758421538406,-465.14240098,0.000188,2]
[386608666,1758421538468,-34.85759902,0.000188,2]
[386608667,1758421538497,-500.0,0.000188,2]
[386608668,1758421538526,-500.0,0.000188,2]
[386608669,1758421538554,-500.0,0.000188,2]
[386608670,1758421538594,-500.0,0.000188,2]
[386608671,1758421538627,-500.0,0.000188,2]
[386608672,1758421538658,-273.69126088,0.00019291,2]
[386608673,1758421538691,-1832.52,0.00019396,2]
[386608674,1758421538723,-350.0,0.00019617,2]
[386608675,1758421538845,-175.42222571,0.00019617,2]
[386608676,1758421538875,-257.50533316,0.00019617,2]
[386608677,1758421538907,-500.0,0.00019617,2]
[386608678,1758421538939,-500.0,0.00019617,2]
[386608679,1758421538971,-500.0,0.00019617,2]
[386608680,1758421539003,-500.0,0.00019617,2]
[386608681,1758421539036,-500.0,0.00019617,2]
[386608682,1758421539069,-500.0,0.00019617,2]
[386608683,1758421539101,-500.0,0.00019617,2]
[386608684,1758421539133,-500.0,0.00019617,2]
[386608685,1758421539167,-487.32912085,0.00019617,2]
[386608686,1758421539252,-500.0,0.00019617,2]
[386608687,1758421539281,-3168.1502727,0.00019618,2]
[386608688,1758421539309,-500.0,0.00019673,2]
[386608689,1758421539338,-500.0,0.00019673,2]
[386608690,1758421539374,-163.7094546,0.00019673,2]
[386608691,1758421539462,-336.2905454,0.00019673,2]
[386608692,1758421539492,-480.0,0.00019675,2]
[386608693,1758421539522,-480.0,0.00019675,2]
[386608694,1758421539553,-672.26,0.00019675,2]
[386608695,1758421539584,-167.10587015,0.00019675,2]
[386608696,1758421540638,500.0,0.000188,2]
[386608697,1758421541469,500.0,0.000188,2]
[386608698,1758421557227,500.0,0.000185,2]
[386608709,1758421562657,500.0,0.000188,2]
[386608710,1758421562730,300.0,0.00019675,2]
[386608711,1758421563429,325.40730612,0.00019673,2]
[386608712,1758421563469,500.0,0.000188,2]
[386608713,1758421563546,500.0,0.00019673,2]
[386608714,1758421563574,500.0,0.00019673,2]
[386608715,1758421588525,1603.28986278,0.00019392,2]
[386608716,1758421588549,252.44013722,0.00019392,2]
[386608717,1758421589460,2279.220628,0.0001876,2]
[386608718,1758421593935,554.14768009,0.00019675,2]
[386608719,1758421609380,910.41,0.00019675,2]
[386608720,1758421617564,6003.79155469,0.00018908,2]
[386608721,1758421617585,10000.01,0.00018908,2]
[386608722,1758421617607,2622.58704251,0.00018908,2]
[386608723,1758421622389,300.0,0.00019675,2]
[386608724,1758421625580,480.0,0.00019675,2]
[386608725,1758421636442,1200.0,0.00019675,2]
[386608726,1758421642116,-1427.1542109,0.00019676,2]
[386608727,1758421643093,606.79,0.00019675,2]
[386608728,1758421652098,-502.38,0.00019676,2]
[386608729,1758421659390,894.3,0.00019675,2]
[386608731,1758421670120,1905.71,0.00019383,2]
[386608732,1758421670424,1990.62295749,0.00018,2]
[386608733,1758421670448,10000.01,0.00018,2]
[386608734,1758421670471,10000.01,0.00018,2]
[386608735,1758421670495,10000.01,0.00018,2]
[386608736,1758421670519,10000.01,0.00018,2]
[386608737,1758421670543,10000.01,0.00018,2]
[386608738,1758421670565,10000.01,0.00018,2]
[386608739,1758421670587,10000.01,0.00018,2]
[386608740,1758421670610,3008.74481938,0.00018,2]
[386608741,1758421673232,480.0,0.00019675,2]
[386608742,1758421682489,300.0,0.00019675,2]
[386608743,1758421685737,490.33754214,0.00019675,2]
[386608744,1758421689396,480.0,0.00019675,2]
[386608745,1758421693041,3070.71168905,0.00019205,5]
[386608746,1758421693776,418.81060728,0.00010618,2]
[386608748,1758421702420,1003.47170541,0.00015,2]
[386608749,1758421702465,747.93363674,0.00019178,2]
[386608750,1758421702487,4252.06636326,0.00019178,2]
[386608751,1758421702608,3933.3711051,0.00019178,2]
[386608753,1758421704432,1814.57253164,0.000176,2]
[386608754,1758421704453,289.87375612,0.000176,2]
[386608755,1758421706139,480.0,0.00019675,2]
[386608756,1758421709469,480.0,0.00019675,2]
[386608757,1758421713947,8750.13624388,0.00017,2]
[386608758,1758421713970,10000.01,0.00017,2]
[386608759,1758421713992,10000.01,0.00017,2]
[386608760,1758421714015,10000.01,0.00017,2]
[386608761,1758421714038,10000.01,0.00017,2]
[386608762,1758421714060,10000.01,0.00017,2]
[386608763,1758421714081,10000.01,0.00017,2]
[386608764,1758421714104,10000.01,0.00017,2]
[386608765,1758421714126,10000.01,0.00017,2]
[386608766,1758421714150,298.82988537,0.00017,2]
[386608768,1758421716576,9701.18011463,0.00015,2]
[386608769,1758421716622,31366.29733367,0.00015,2]
[386608771,1758421718152,585.90259037,0.000149,2]
[386608772,1758421719175,9234.80007596,0.00018,2]
[386608773,1758421719202,640.58805245,0.00018,2]
[386608774,1758421722396,212.58841669,0.00016,2]
[386608775,1758421722883,3358.38872401,0.00013,2]
[386608776,1758421723926,10000.01,0.0001,2]
[386608777,1758421723948,7757.05796198,0.0001,2]
[386608778,1758421725225,2242.95203802,0.0001,2]
[386608779,1758421725247,10000.01,0.0001,2]
[386608780,1758421725269,10000.01,0.0001,2]
[386608781,1758421725290,10000.01,0.0001,2]
[386608782,1758421725313,4757.01796198,0.0001,2]
[386608783,1758421725779,1728.99161473,0.0001,2]
[386608784,1758421726409,3514.00042329,0.00019063,7]
[386608785,1758421726431,9977.22495725,0.00019063,7]
[386608786,1758421733056,22.78504275,0.00019675,2]
[386608787,1758421733079,467.21946951,0.00019675,2]
[386608788,1758421742303,300.0,0.00019675,2]
[386608789,1758421744519,480.0,0.00019675,2]
[386608790,1758421751488,480.0,0.00019675,2]
[386608791,1758421751870,1895.43,0.00019402,2]
[386608792,1758421759569,529.43099161,0.00019675,2]
[386608793,1758421762954,352.76242483,0.00019524,2]
[386608794,1758421765259,222.26250182,0.00019576,2]
[386608795,1758421770216,480.0,0.00019675,2]
[386608796,1758421778641,-17.20614775,0.00019676,2]
[386608797,1758421778840,-34.4122955,0.00019676,2]
[386608798,1758421785158,-297.37890636,0.00019178,2]
[386608799,1758421788822,-182.62109364,0.00019178,2]
[386608800,1758421788853,-480.0,0.00019452,2]
[386608801,1758421788884,-644.25,0.00019675,2]
[386608802,1758421789064,-68.824591,0.00019676,2]
[386608803,1758421796035,-480.0,0.00019675,2]
[386608804,1758421796161,-137.649182,0.00019676,2]
[386608805,1758421803692,-300.0,0.00019675,2]
[386608806,1758421803917,-275.298364,0.00019676,2]
[386608807,1758421811357,-239.12924068,0.00018903,2]
[386608808,1758421812993,-163.56129368,0.00018903,2]
[386608809,1758421813759,-873.54983964,0.00018903,2]
[386608810,1758421813789,-480.0,0.00019675,2]
[386608811,1758421813820,-522.56,0.00019675,2]
[386608812,1758421813848,-1000.0,0.00019676,2]
[386608813,1758421813878,-1000.0,0.00019676,2]
[386608814,1758421813905,-500.0,0.00019676,2]
[386608815,1758421813933,-247.79032072,0.00019676,2]
[386608816,1758421818725,-752.20967928,0.00019676,2]
[386608817,1758421818756,-500.0,0.00019676,2]
[386608818,1758421818787,-250.0,0.00019676,2]
[386608819,1758421818818,-1000.0,0.00019676,2]
[386608820,1758421818847,-500.0,0.00019676,2]
[386608821,1758421818879,-500.0,0.00019676,2]
[386608822,1758421818910,-250.0,0.00019676,2]
[386608823,1758421818939,-500.0,0.00019676,2]
[386608824,1758421818971,-495.59064144,0.00019676,2]
[386608825,1758421819272,-504.40935856,0.00019676,2]
[386608826,1758421819303,-500.0,0.00019676,2]
[386608827,1758421819334,-250.0,0.00019676,2]
[386608828,1758421819362,-500.0,0.00019676,2]
[386608829,1758421819391,-1000.0,0.00019676,2]
[386608830,1758421819522,-500.0,0.00019676,2]
[386608831,1758421819551,-250.0,0.00019676,2]
[386608832,1758421819578,-500.0,0.00019676,2]
[386608833,1758421819608,-500.0,0.00019676,2]
[386608834,1758421823741,-1000.0,0.00019676,2]
[386608835,1758421823779,-250.0,0.00019676,2]
[386608836,1758421823817,-500.0,0.00019676,2]
[386608837,1758421823854,-500.0,0.00019676,2]
[386608838,1758421823891,-250.0,0.00019676,2]
[386608839,1758421823928,-500.0,0.00019676,2]
[386608840,1758421823965,-1000.0,0.00019676,2]
[386608841,1758421824002,-500.0,0.00019676,2]
[386608842,1758421824035,-250.0,0.00019676,2]
[386608843,1758421824069,-0.01,0.00019676,2]
[386608844,1758421824248,-499.99,0.00019676,2]
[386608845,1758421824283,-952.99,0.00019676,2]
[386608846,1758421824318,-515.32588682,0.00019676,2]
[386608847,1758421824352,-254.89225027,0.00019676,2]
[386608848,1758421824385,-500.0,0.00019676,2]
[386608849,1758421824419,-500.0,0.00019676,2]
[386608850,1758421824452,-250.0,0.00019676,2]
[386608851,1758421824484,-250.0,0.00019676,2]
[386608852,1758421824516,-151.0,0.00019676,2]
[386608853,1758421824549,-396.15442356,0.00019676,2]
[386608854,1758421824582,-151.0,0.00019676,2]
[386608855,1758421824615,-151.0,0.00019676,2]
[386608856,1758421824647,-151.0,0.00019676,2]
[386608857,1758421824680,-151.0,0.00019676,2]
[386608858,1758421824712,-100.3048787,0.00019676,2]
[386608859,1758421824965,-50.6951213,0.00019676,2]
[386608860,1758421824994,-151.0,0.00019676,2]
[386608902,1758421832592,-189.0950339,0.00018735,2]
[386608903,1758421832603,-480.0,0.00019675,2]
[386608904,1758421832613,-9816.5909172,0.00019676,2]
[386608905,1758421832622,-151.0,0.00019676,2]
[386608906,1758421832631,-168.3888056,0.00019676,2]
[386608907,1758421832640,-151.0,0.00019676,2]
[386608908,1758421832650,-151.0,0.00019676,2]
[386608909,1758421832659,-181.06448617,0.00019676,2]
[386608910,1758421832669,-151.0,0.00019676,2]
[386608911,1758421832678,-153.9236898,0.00019676,2]
[386608912,1758421832687,-151.0,0.00019676,2]
[386608913,1758421832697,-151.0,0.00019676,2]
[386608914,1758421832706,-165.35069145,0.00019676,2]
[386608915,1758421832716,-7618.12135535,0.00019676,2]
[386608916,1758421832727,-399.70554934,0.00019676,2]
[386608926,1758421838428,-14931.40272429,0.00019676,2]
[386608927,1758421838535,-480.0,0.00019676,2]
[386609010,1758421840935,-30.30805747,0.00019676,2]
[386609012,1758421842002,-291.21277042,0.00019504,2]
[386609050,1758421843616,-1588.99722958,0.00019504,2]
[386609051,1758421843626,-116048.94626429,0.00019676,2]
[386609052,1758421843636,-1347.07,0.00019687,2]
[386609053,1758421843645,-611.39526985,0.00019687,2]
[386609054,1758421843654,-780.19,0.00019687,2]
[386609055,1758421843664,-480.0,0.00019689,2]
[386609056,1758421843674,-620.07,0.00019689,2]
[386609057,1758421843683,-480.0,0.00019689,2]
[386609058,1758421843692,-480.0,0.00019689,2]
[386609059,1758421843702,-492.63664976,0.00019689,2]
[386609060,1758421843711,-388.93709765,0.00019689,2]
[386609061,1758421843721,-480.0,0.00019689,2]
[386609062,1758421843730,-491.87566507,0.00019689,2]
[386609063,1758421843739,-3237.13,0.00019689,2]
[386609064,1758421843749,-522.86,0.00019689,2]
[386609065,1758421843759,-1456.1,0.00019689,2]
[386609066,1758421843768,-480.0,0.00019726,2]
[386609067,1758421843778,-480.0,0.00019765,2]
[386609068,1758421843787,-495.44752809,0.00019765,2]
[386609069,1758421843797,-480.0,0.00019765,2]
[386609070,1758421843807,-480.0,0.00019765,2]
[386609071,1758421843816,-480.0,0.00019765,2]
[386609072,1758421843826,-570.98,0.00019765,2]
[386609073,1758421843835,-480.0,0.00019765,2]
[386609074,1758421843845,-480.0,0.00019765,2]
[386609075,1758421843854,-491.0315181,0.00019765,2]
[386609076,1758421843863,-480.0,0.00019765,2]
[386609077,1758421843872,-495.97347085,0.00019773,2]
[386609078,1758421843882,-214.28841993,0.00019773,2]
[386609079,1758421843891,-480.0,0.00019773,2]
[386609080,1758421843901,-480.0,0.00019773,2]
[386609081,1758421843910,-480.0,0.00019773,2]
[386609082,1758421843919,-480.0,0.00019773,2]
[386609083,1758421843928,-580.67855767,0.00019773,2]
[386609084,1758421843937,-480.0,0.00019773,2]
[386609085,1758421843947,-667.6,0.00019773,2]
[386609086,1758421843956,-403.90364687,0.00019773,2]
[386609087,1758421843965,-480.0,0.00019773,2]
[386609088,1758421843974,-480.0,0.00019773,2]
[386609089,1758421843983,-480.0,0.00019773,2]
[386609090,1758421843993,-480.0,0.00019773,2]
[386609091,1758421844002,-480.0,0.00019773,2]
[386609092,1758421844012,-846.19,0.00019773,2]
[386609093,1758421844021,-480.0,0.00019773,2]
[386609094,1758421844040,-480.0,0.00019773,2]
[386609095,1758421844050,-480.0,0.00019773,2]
[386609096,1758421844060,-480.0,0.00019773,2]
[386609097,1758421844070,-480.0,0.00019773,2]
[386609098,1758421844079,-1254.21,0.00019773,2]
[386609099,1758421844089,-521.52580603,0.00019773,2]
[386609100,1758421844098,-728.32,0.00019773,2]
[386609101,1758421844108,-490.37610235,0.00019773,2]
[386609102,1758421844117,-480.0,0.00019773,2]
[386609103,1758421844126,-500.0,0.00019774,2]
[386609104,1758421844136,-490.26418494,0.00019774,2]
[386609105,1758421844146,-247.124,0.00019774,2]
[386609106,1758421844156,-480.0,0.00019774,2]
[386609107,1758421844166,-480.0,0.00019774,2]
[386609108,1758421844176,-341.94871311,0.00019774,2]
[386609109,1758421844186,-509.64128297,0.00019774,2]
[386609110,1758421844196,-1172.96,0.00019774,2]
[386609111,1758421844205,-480.0,0.00019774,2]
[386609112,1758421844217,-609.03,0.00019774,2]
[386609113,1758421844233,-480.0,0.00019774,2]
[386609114,1758421844243,-505.6307875,0.00019775,2]
[386609115,1758421844252,-671.04,0.00019775,2]
[386609116,1758421844261,-493.38226521,0.00019775,2]
[386609117,1758421844271,-480.0,0.00019775,2]
[386609118,1758421844280,-492.32834843,0.00019775,2]
[386609119,1758421844289,-495.47788494,0.00019777,2]
[386609120,1758421844299,-6966.12,0.00019777,2]
[386609121,1758421844309,-252.8184826,0.00019777,2]
[386609122,1758421844318,-1468.16444267,0.00019777,2]
[386609123,1758421844327,-480.0,0.00019777,2]
[386609124,1758421844337,-480.0,0.00019777,2]
[386609125,1758421844347,-765.55,0.00019777,2]
[386609126,1758421844356,-19631.008809,0.00019778,2]
[386609127,1758421844366,-835.33,0.00019787,2]
[386609128,1758421844375,-152.058854,0.00019788,2]
[386609129,1758421844384,-153.668486,0.00019788,2]
[386609130,1758421844394,-151.0,0.00019788,2]
[386609131,1758421844404,-242.14,0.00019791,2]
[386609132,1758421844413,-168.0,0.00019808,2]
[386609133,1758421844423,-160.0,0.00019822,3]
[386609134,1758421844433,-3300.06662601,0.0001985,2]
[386609135,1758421844442,-1174.82509452,0.0001985,2]
[386609136,1758421844452,-151.0,0.00019878,2]
[386609137,1758421844461,-151.0,0.00019878,2]
[386609138,1758421844471,-164.02275765,0.00019878,2]
[386609139,1758421844480,-246.13635362,0.00019878,2]
[386609140,1758421844489,-163.70727449,0.00019878,2]
[386609141,1758421844499,-151.0,0.00019878,2]
[386609142,1758421844508,-151.0,0.00019878,2]
[386609143,1758421844517,-151.0,0.00019878,2]
[386609144,1758421844527,-151.0,0.00019878,2]
[386609145,1758421844536,-9211.8603504,0.00019888,2]
[386609146,1758421844547,-168.0,0.00019891,2]
[386609147,1758421844557,-407.2827298,0.000199,2]
[386609148,1758421844566,-151.0,0.000199,2]
[386609149,1758421844575,-154.336327,0.000199,2]
[386609150,1758421844585,-152.10931,0.000199,2]
[386609151,1758421844595,-2220.93551696,0.000199,2]
[386609152,1758421844604,-14086.54960566,0.000199,2]
[386609153,1758421844613,-159.447087,0.00019949,2]
[386609154,1758421844623,-151.0,0.00019949,2]
[386609155,1758421844633,-152.175508,0.00019949,2]
[386609156,1758421844642,-910.41,0.00019949,2]
[386609157,1758421844652,-480.0,0.00019949,2]
[386609158,1758421844662,-606.79,0.00019949,2]
[386609159,1758421844671,-894.3,0.00019949,2]
[386609160,1758421844681,-480.0,0.00019949,2]
[386609161,1758421844690,-480.0,0.00019949,2]
[386609162,1758421844700,-480.0,0.00019949,2]
[386609163,1758421844710,-480.0,0.00019949,2]
[386609164,1758421844719,-480.0,0.00019949,2]
[386609165,1758421844729,-152.391013,0.00019949,2]
[386609166,1758421844738,-480.0,0.00019949,2]
[386609167,1758421844747,-480.0,0.00019949,2]
[386609168,1758421844757,-151.0,0.00019949,2]
[386609169,1758421844766,-644.25,0.00019949,2]
[386609170,1758421844776,-480.0,0.00019949,2]
[386609171,1758421844785,-151.0,0.00019949,2]
[386609172,1758421844794,-480.0,0.00019949,2]
[386609173,1758421844804,-522.56,0.00019949,2]
[386609174,1758421844813,-161.75985,0.00019949,2]
[386609175,1758421844823,-151.0,0.00019949,2]
[386609176,1758421844833,-151.0,0.00019949,2]
[386609177,1758421844843,-179.532889,0.00019949,2]
[386609178,1758421844852,-160.155487,0.00019949,2]
[386609179,1758421844862,-480.0,0.00019949,2]
[386609180,1758421844872,-1347.07,0.00019961,2]
[386609181,1758421844882,-780.19,0.00019961,2]
[386609182,1758421844891,-152.626994,0.00019961,2]
[386609183,1758421844901,-169.229891,0.00019961,2]
[386609184,1758421844911,-169.229891,0.00019961,2]
[386609185,1758421844921,-169.229891,0.00019961,2]
[386609186,1758421844930,-169.229891,0.00019961,2]
[386609187,1758421844939,-480.0,0.00019963,2]
[386609188,1758421844949,-620.07,0.00019963,2]
[386609189,1758421844958,-480.0,0.00019963,2]
[386609190,1758421844967,-480.0,0.00019963,2]
[386609191,1758421844977,-480.0,0.00019963,2]
[386609192,1758421844987,-3237.13,0.00019963,2]
[386609193,1758421844997,-522.86,0.00019963,2]
[386609194,1758421845006,-1456.1,0.00019963,2]
[386609195,1758421845016,-500.0,0.00019973,2]